[Event "January 2 Early 2024"]
[Site "https://www.chess.com"]
[Date "2024.01.02"]
[Round "2"]
[White "Rustemov, Alexander"]
[Black "Roberson, Peter T"]
[Result "1-0"]
[Board "65"]
[TimeControl "180+1"]
[WhiteFideId "4119002"]
[BlackFideId "412384"]
[WhiteElo "2854"]
[BlackElo "2568"]
[WhiteTeam "RUS"]
[BlackTeam "ENG"]
[WhiteClock "0:00:30"]
[BlackClock "0:00:00"]

1. d4 {[%clk 0:03:00]}  Nf6 {[%clk 0:03:00]} 2. c4 {[%clk 0:03:01]}  c5 {[%clk 0:03:00]} 3. d5 {[%clk 0:03:00]}  e6 {[%clk 0:03:00]} 4. Nc3 {[%clk 0:02:59]}  exd5 {[%clk 0:03:01]} 5. cxd5 {[%clk 0:03:00]}  d6 {[%clk 0:03:02]} 6. e4 {[%clk 0:03:01]}  g6 {[%clk 0:03:02]} 7. h3 {[%clk 0:03:01]}  Bg7 {[%clk 0:03:01]} 8. Bd3 {[%clk 0:03:02]}  O-O {[%clk 0:03:01]} 9. Nf3 {[%clk 0:03:02]}  b5 {[%clk 0:03:02]} 10. Bxb5 {[%clk 0:03:02]}  Nxe4 {[%clk 0:02:59]} 11. Nxe4 {[%clk 0:03:03]}  Qa5+ {[%clk 0:02:57]} 12. Nfd2 {[%clk 0:03:03]}  Qxb5 {[%clk 0:02:57]} 13. Nxd6 {[%clk 0:03:04]}  Qa6 {[%clk 0:02:51]} 14. N2c4 {[%clk 0:03:04]}  Nd7 {[%clk 0:02:50]} 15. O-O {[%clk 0:03:04]}  Ne5 {[%clk 0:02:49]} 16. Nxc8 {[%clk 0:02:59]}  Nxc4 {[%clk 0:02:09]} 17. Ne7+ {[%clk 0:02:58]}  Kh8 {[%clk 0:02:09]} 18. Qc2 {[%clk 0:02:54]}  Ne5 {[%clk 0:01:08]} 19. Rd1 {[%clk 0:02:44]}  c4 {[%clk 0:01:03]} 20. Nc6 {[%clk 0:02:21]}  Nxc6 {[%clk 0:00:57]} 21. dxc6 {[%clk 0:02:22]}  Rac8 {[%clk 0:00:52]} 22. Bd2 {[%clk 0:02:19]}  Qxc6 {[%clk 0:00:46]} 23. Bc3 {[%clk 0:02:19]}  Rfd8 {[%clk 0:00:39]} 24. Rxd8+ {[%clk 0:02:17]}  Rxd8 {[%clk 0:00:40]} 25. Bxg7+ {[%clk 0:02:14]}  Kxg7 {[%clk 0:00:41]} 26. Rc1 {[%clk 0:02:14]}  Qf6 {[%clk 0:00:34]} 27. g3 {[%clk 0:02:06]}  Rb8 {[%clk 0:00:33]} 28. Rb1 {[%clk 0:02:01]}  c3 {[%clk 0:00:30]} 29. bxc3 {[%clk 0:01:34]}  Rxb1+ {[%clk 0:00:31]} 30. Qxb1 {[%clk 0:01:34]}  Qxc3 {[%clk 0:00:31]} 31. h4 {[%clk 0:01:33]}  h5 {[%clk 0:00:31]} 32. Qd1 {[%clk 0:01:31]}  a5 {[%clk 0:00:29]} 33. Qa4 {[%clk 0:01:29]}  Qe5 {[%clk 0:00:25]} 34. Qc4 {[%clk 0:01:27]}  Qf6 {[%clk 0:00:16]} 35. Kg2 {[%clk 0:01:27]}  Kh7 {[%clk 0:00:16]} 36. a4 {[%clk 0:01:25]}  Kg7 {[%clk 0:00:15]} 37. Kf1 {[%clk 0:01:24]}  Qb2 {[%clk 0:00:14]} 38. Qe4 {[%clk 0:01:16]}  Qa1+ {[%clk 0:00:11]} 39. Kg2 {[%clk 0:01:16]}  Qc3 {[%clk 0:00:11]} 40. Qd5 {[%clk 0:01:14]}  Qb4 {[%clk 0:00:10]} 41. Qc6 {[%clk 0:01:11]}  Qd4 {[%clk 0:00:09]} 42. Qb5 {[%clk 0:01:09]}  Qc3 {[%clk 0:00:09]} 43. Kf1 {[%clk 0:01:07]}  Qc1+ {[%clk 0:00:09]} 44. Ke2 {[%clk 0:01:07]}  Qc2+ {[%clk 0:00:09]} 45. Ke3 {[%clk 0:01:07]}  Qc3+ {[%clk 0:00:10]} 46. Ke4 {[%clk 0:01:05]}  Qd2 {[%clk 0:00:10]} 47. Qe5+ {[%clk 0:00:56]}  Kg8 {[%clk 0:00:11]} 48. Qd4 {[%clk 0:00:56]}  Qc2+ {[%clk 0:00:09]} 49. Kd5 {[%clk 0:00:56]}  Qb3+ {[%clk 0:00:07]} 50. Kc5 {[%clk 0:00:55]}  Kh7 {[%clk 0:00:04]} 51. Qc4 {[%clk 0:00:53]}  Qa3+ {[%clk 0:00:02]} 52. Kb5 {[%clk 0:00:53]}  Qf3 {[%clk 0:00:03]} 53. Kxa5 {[%clk 0:00:46]}  Qxf2 {[%clk 0:00:03]} 54. Qc7 {[%clk 0:00:41]}  Qf5+ {[%clk 0:00:03]} 55. Ka6 {[%clk 0:00:40]}  g5 {[%clk 0:00:03]} 56. hxg5 {[%clk 0:00:36]}  Kg6 {[%clk 0:00:03]} 57. a5 {[%clk 0:00:35]}  Qxg5 {[%clk 0:00:02]} 58. Ka7 {[%clk 0:00:34]}  h4 {[%clk 0:00:02]} 59. gxh4 {[%clk 0:00:32]}  Qxh4 {[%clk 0:00:02]} 60. a6 {[%clk 0:00:32]}  f5 {[%clk 0:00:03]} 61. Kb7 {[%clk 0:00:30]}  Qb4+ {[%clk 0:00:00]} 62. Qb6+ {[%clk 0:00:30]} 1-0

[Event "January 2 Early 2024"]
[Site "https://www.chess.com"]
[Date "2024.01.02"]
[Round "2"]
[White "Materia, Marco"]
[Black "AmanteDeMoi"]
[Result "1-0"]
[Board "67"]
[TimeControl "180+1"]
[WhiteFideId "45150451"]
[WhiteElo "2846"]
[BlackElo "2565"]
[WhiteTeam "FRA"]
[WhiteClock "0:00:42"]
[BlackClock "0:00:02"]

1. Nf3 {[%clk 0:03:00]}  g6 {[%clk 0:02:59]} 2. c4 {[%clk 0:03:00]}  Bg7 {[%clk 0:02:59]} 3. Nc3 {[%clk 0:03:00]}  e5 {[%clk 0:02:58]} 4. d4 {[%clk 0:02:55]}  exd4 {[%clk 0:02:54]} 5. Nxd4 {[%clk 0:02:55]}  Nf6 {[%clk 0:02:55]} 6. e4 {[%clk 0:02:54]}  O-O {[%clk 0:02:55]} 7. Be2 {[%clk 0:02:54]}  Re8 {[%clk 0:02:54]} 8. f3 {[%clk 0:02:54]}  c6 {[%clk 0:02:54]} 9. Bg5 {[%clk 0:02:30]}  Qa5 {[%clk 0:02:54]} 10. Qd2 {[%clk 0:02:27]}  Nxe4 {[%clk 0:02:54]} 11. Nxe4 {[%clk 0:02:18]}  Qxd2+ {[%clk 0:02:55]} 12. Kxd2 {[%clk 0:02:14]}  Bxd4 {[%clk 0:02:56]} 13. Nd6 {[%clk 0:02:14]}  Re6 {[%clk 0:02:13]} 14. Nxc8 {[%clk 0:02:13]}  f6 {[%clk 0:02:13]} 15. Bf4 {[%clk 0:02:07]}  g5 {[%clk 0:01:47]} 16. Bd6 {[%clk 0:01:47]}  Na6 {[%clk 0:01:30]} 17. Ne7+ {[%clk 0:01:46]}  Rxe7 {[%clk 0:01:15]} 18. Bxe7 {[%clk 0:01:45]}  d6 {[%clk 0:00:51]} 19. Rhe1 {[%clk 0:01:29]}  Bf2 {[%clk 0:00:36]} 20. Rf1 {[%clk 0:01:27]}  Bd4 {[%clk 0:00:33]} 21. Rae1 {[%clk 0:01:03]}  Kf7 {[%clk 0:00:31]} 22. Bd3 {[%clk 0:00:47]}  Be5 {[%clk 0:00:26]} 23. Rxe5 {[%clk 0:00:46]}  dxe5 {[%clk 0:00:27]} 24. Ba3 {[%clk 0:00:46]}  Rd8 {[%clk 0:00:27]} 25. Kc3 {[%clk 0:00:46]}  Nc7 {[%clk 0:00:24]} 26. Bxh7 {[%clk 0:00:45]}  Rh8 {[%clk 0:00:20]} 27. Bf5 {[%clk 0:00:44]}  Rxh2 {[%clk 0:00:21]} 28. Rd1 {[%clk 0:00:44]}  Ke8 {[%clk 0:00:02]} 29. Rd7 {[%clk 0:00:43]}  Na6 {[%clk 0:00:01]} 30. Re7+ {[%clk 0:00:42]}  Kd8 {[%clk 0:00:01]} 31. Rxb7 {[%clk 0:00:42]}  Rxg2 {[%clk 0:00:01]} 32. Rxa7 {[%clk 0:00:42]}  Nc7 {[%clk 0:00:01]} 33. Bd6 {[%clk 0:00:41]}  Ne8 {[%clk 0:00:02]} 34. Ra8# {[%clk 0:00:42]} 1-0

[Event "January 2 Early 2024"]
[Site "https://www.chess.com"]
[Date "2024.01.02"]
[Round "2"]
[White "Korchynskyi, Mykola"]
[Black "Durarbayli, Vasif"]
[Result "0-1"]
[Board "68"]
[TimeControl "180+1"]
[WhiteFideId "34138005"]
[BlackFideId "13402935"]
[WhiteElo "2564"]
[BlackElo "2843"]
[WhiteTeam "UKR"]
[BlackTeam "AZE"]
[WhiteClock "0:00:00"]
[BlackClock "0:00:09"]

1. d4 {[%clk 0:02:55]}  Nf6 {[%clk 0:02:59]} 2. c4 {[%clk 0:02:55]}  e6 {[%clk 0:02:59]} 3. Nc3 {[%clk 0:02:55]}  Bb4 {[%clk 0:02:59]} 4. Qc2 {[%clk 0:02:54]}  d5 {[%clk 0:02:58]} 5. cxd5 {[%clk 0:02:51]}  exd5 {[%clk 0:02:59]} 6. Bg5 {[%clk 0:02:51]}  c5 {[%clk 0:02:59]} 7. e3 {[%clk 0:02:49]}  O-O {[%clk 0:02:41]} 8. Nf3 {[%clk 0:02:43]}  c4 {[%clk 0:02:26]} 9. Be2 {[%clk 0:02:37]}  h6 {[%clk 0:02:23]} 10. Bh4 {[%clk 0:02:27]}  Nbd7 {[%clk 0:02:07]} 11. O-O {[%clk 0:02:19]}  Qa5 {[%clk 0:01:50]} 12. Nd2 {[%clk 0:02:03]}  b5 {[%clk 0:01:44]} 13. a3 {[%clk 0:01:53]}  Bd6 {[%clk 0:01:36]} 14. Bf3 {[%clk 0:01:46]}  Bb7 {[%clk 0:01:35]} 15. Qf5 {[%clk 0:01:41]}  g6 {[%clk 0:01:09]} 16. Qc2 {[%clk 0:01:31]}  a6 {[%clk 0:01:04]} 17. Rfe1 {[%clk 0:01:28]}  Qc7 {[%clk 0:01:03]} 18. Bg3 {[%clk 0:01:28]}  Rfe8 {[%clk 0:01:01]} 19. e4 {[%clk 0:01:22]}  dxe4 {[%clk 0:00:59]} 20. Ncxe4 {[%clk 0:01:15]}  Bxg3 {[%clk 0:00:55]} 21. Nxg3 {[%clk 0:00:58]}  Rad8 {[%clk 0:00:39]} 22. Rad1 {[%clk 0:00:51]}  Rxe1+ {[%clk 0:00:37]} 23. Rxe1 {[%clk 0:00:50]}  Nf8 {[%clk 0:00:35]} 24. Bxb7 {[%clk 0:00:28]}  Qxb7 {[%clk 0:00:36]} 25. Nde4 {[%clk 0:00:27]}  Nxe4 {[%clk 0:00:28]} 26. Nxe4 {[%clk 0:00:28]}  Kg7 {[%clk 0:00:28]} 27. Rd1 {[%clk 0:00:13]}  Qd5 {[%clk 0:00:24]} 28. Nc3 {[%clk 0:00:13]}  Qd6 {[%clk 0:00:18]} 29. d5 {[%clk 0:00:13]}  Nd7 {[%clk 0:00:19]} 30. h3 {[%clk 0:00:09]}  Re8 {[%clk 0:00:18]} 31. Qd2 {[%clk 0:00:08]}  Nc5 {[%clk 0:00:12]} 32. Qd4+ {[%clk 0:00:08]}  Kg8 {[%clk 0:00:12]} 33. h4 {[%clk 0:00:05]}  h5 {[%clk 0:00:12]} 34. g3 {[%clk 0:00:03]}  Nb3 {[%clk 0:00:09]} 35. Qa7 {[%clk 0:00:00]}  Nc5 {[%clk 0:00:09]} 0-1

[Event "January 2 Early 2024"]
[Site "https://www.chess.com"]
[Date "2024.01.02"]
[Round "2"]
[White "Ezat, Mohamed"]
[Black "Grabinsky, Aaron"]
[Result "0-1"]
[Board "70"]
[TimeControl "180+1"]
[WhiteFideId "10600906"]
[BlackFideId "2087090"]
[WhiteElo "2561"]
[BlackElo "2836"]
[WhiteTeam "EGY"]
[BlackTeam "USA"]
[WhiteClock "0:00:00"]
[BlackClock "0:02:31"]

1. d4 {[%clk 0:00:53]}  e6 {[%clk 0:02:59]} 2. c4 {[%clk 0:00:46]}  Bb4+ {[%clk 0:02:59]} 3. Bd2 {[%clk 0:00:46]}  Qe7 {[%clk 0:02:59]} 4. Nc3 {[%clk 0:00:43]}  Nf6 {[%clk 0:02:59]} 5. Rc1 {[%clk 0:00:42]}  Nc6 {[%clk 0:02:59]} 6. Nf3 {[%clk 0:00:41]}  Bxc3 {[%clk 0:02:59]} 7. Bxc3 {[%clk 0:00:39]}  Ne4 {[%clk 0:03:00]} 8. d5 {[%clk 0:00:30]}  Nxc3 {[%clk 0:03:00]} 9. Rxc3 {[%clk 0:00:28]}  Nb8 {[%clk 0:03:00]} 10. e3 {[%clk 0:00:23]}  O-O {[%clk 0:03:00]} 11. Bd3 {[%clk 0:00:22]}  d6 {[%clk 0:03:01]} 12. O-O {[%clk 0:00:19]}  e5 {[%clk 0:03:02]} 13. Nd2 {[%clk 0:00:17]}  a5 {[%clk 0:03:02]} 14. a3 {[%clk 0:00:16]}  Na6 {[%clk 0:03:03]} 15. e4 {[%clk 0:00:09]}  Bd7 {[%clk 0:03:02]} 16. Bc2 {[%clk 0:00:09]}  Nc5 {[%clk 0:03:01]} 17. b4 {[%clk 0:00:08]}  axb4 {[%clk 0:03:02]} 18. axb4 {[%clk 0:00:07]}  Na6 {[%clk 0:03:03]} 19. Qb1 {[%clk 0:00:04]}  c6 {[%clk 0:03:04]} 20. Re1 {[%clk 0:00:04]}  c5 {[%clk 0:03:04]} 21. b5 {[%clk 0:00:04]}  Nb4 {[%clk 0:03:04]} 22. Nf1 {[%clk 0:00:04]}  g6 {[%clk 0:03:05]} 23. Rg3 {[%clk 0:00:03]}  Qh4 {[%clk 0:03:05]} 24. Qc1 {[%clk 0:00:03]}  Kg7 {[%clk 0:03:04]} 25. Ne3 {[%clk 0:00:03]}  Qh6 {[%clk 0:03:03]} 26. h3 {[%clk 0:00:02]}  Kh8 {[%clk 0:03:01]} 27. Qd2 {[%clk 0:00:02]}  Rg8 {[%clk 0:03:01]} 28. Qe2 {[%clk 0:00:02]}  Qh5 {[%clk 0:03:00]} 29. Bb1 {[%clk 0:00:03]}  Qxe2 {[%clk 0:03:00]} 30. Rxe2 {[%clk 0:00:03]}  Kg7 {[%clk 0:03:01]} 31. Re1 {[%clk 0:00:04]}  Rgf8 {[%clk 0:03:01]} 32. Rf3 {[%clk 0:00:04]}  f6 {[%clk 0:03:01]} 33. g4 {[%clk 0:00:04]}  Ra1 {[%clk 0:03:00]} 34. Kf1 {[%clk 0:00:03]}  Rfa8 {[%clk 0:03:00]} 35. Nc2 {[%clk 0:00:03]}  Rxb1 {[%clk 0:02:59]} 36. Rxb1 {[%clk 0:00:03]}  Nxc2 {[%clk 0:02:59]} 37. Rc3 {[%clk 0:00:03]}  Nd4 {[%clk 0:03:00]} 38. Rcc1 {[%clk 0:00:03]}  Ra2 {[%clk 0:02:58]} 39. Ra1 {[%clk 0:00:02]}  Rb2 {[%clk 0:02:57]} 40. Ra7 {[%clk 0:00:02]}  Kf7 {[%clk 0:02:48]} 41. Rxb7 {[%clk 0:00:02]}  Ke7 {[%clk 0:02:49]} 42. Rb8 {[%clk 0:00:02]}  f5 {[%clk 0:02:48]} 43. Rh8 {[%clk 0:00:02]}  Be8 {[%clk 0:02:40]} 44. Rxh7+ {[%clk 0:00:02]}  Bf7 {[%clk 0:02:40]} 45. gxf5 {[%clk 0:00:02]}  gxf5 {[%clk 0:02:41]} 46. exf5 {[%clk 0:00:03]}  Nxf5 {[%clk 0:02:42]} 47. Ra1 {[%clk 0:00:03]}  Kf6 {[%clk 0:02:39]} 48. Ra6 {[%clk 0:00:03]}  e4 {[%clk 0:02:36]} 49. Ra7 {[%clk 0:00:01]}  Bg6 {[%clk 0:02:35]} 50. Rhd7 {[%clk 0:00:01]}  e3 {[%clk 0:02:35]} 51. fxe3 {[%clk 0:00:01]}  Nxe3+ {[%clk 0:02:35]} 52. Ke1 {[%clk 0:00:00]}  Nxc4 {[%clk 0:02:31]} 0-1

[Event "January 2 Early 2024"]
[Site "https://www.chess.com"]
[Date "2024.01.02"]
[Round "2"]
[White "Bryakin, Mikhail"]
[Black "Ginzburg, Yakov"]
[Result "1-0"]
[Board "71"]
[TimeControl "180+1"]
[WhiteFideId "4165314"]
[BlackFideId "4157176"]
[WhiteElo "2833"]
[BlackElo "2559"]
[WhiteTeam "SRB"]
[BlackTeam "RUS"]
[WhiteClock "0:01:34"]
[BlackClock "0:00:13"]

1. b3 {[%clk 0:02:56]}  e5 {[%clk 0:02:59]} 2. Bb2 {[%clk 0:02:57]}  Nc6 {[%clk 0:02:59]} 3. e3 {[%clk 0:02:57]}  a6 {[%clk 0:02:57]} 4. c4 {[%clk 0:02:57]}  Nf6 {[%clk 0:02:47]} 5. Nf3 {[%clk 0:02:57]}  e4 {[%clk 0:02:45]} 6. Nd4 {[%clk 0:02:58]}  Nxd4 {[%clk 0:02:45]} 7. Bxd4 {[%clk 0:02:59]}  Be7 {[%clk 0:02:33]} 8. Nc3 {[%clk 0:02:55]}  O-O {[%clk 0:02:33]} 9. Rc1 {[%clk 0:02:52]}  Re8 {[%clk 0:02:29]} 10. Be2 {[%clk 0:02:48]}  c5 {[%clk 0:02:24]} 11. Bxf6 {[%clk 0:02:48]}  Bxf6 {[%clk 0:02:24]} 12. Nd5 {[%clk 0:02:48]}  d6 {[%clk 0:02:19]} 13. O-O {[%clk 0:02:47]}  Be6 {[%clk 0:02:19]} 14. Nxf6+ {[%clk 0:02:41]}  Qxf6 {[%clk 0:02:20]} 15. d4 {[%clk 0:02:42]}  cxd4 {[%clk 0:02:04]} 16. Qxd4 {[%clk 0:02:39]}  Qxd4 {[%clk 0:02:04]} 17. exd4 {[%clk 0:02:40]}  d5 {[%clk 0:02:04]} 18. c5 {[%clk 0:02:36]}  Bd7 {[%clk 0:01:53]} 19. a4 {[%clk 0:02:33]}  f5 {[%clk 0:01:50]} 20. f4 {[%clk 0:02:34]}  Kf7 {[%clk 0:01:37]} 21. Kf2 {[%clk 0:02:31]}  Kf6 {[%clk 0:01:35]} 22. Ke3 {[%clk 0:02:28]}  h6 {[%clk 0:01:34]} 23. h3 {[%clk 0:02:20]}  Rf8 {[%clk 0:01:15]} 24. Ra1 {[%clk 0:02:13]}  g5 {[%clk 0:01:06]} 25. b4 {[%clk 0:02:11]}  Rg8 {[%clk 0:00:57]} 26. g4 {[%clk 0:02:10]}  gxf4+ {[%clk 0:00:35]} 27. Rxf4 {[%clk 0:02:02]}  h5 {[%clk 0:00:35]} 28. Raf1 {[%clk 0:01:49]}  Rg7 {[%clk 0:00:23]} 29. b5 {[%clk 0:01:38]}  axb5 {[%clk 0:00:22]} 30. Bxb5 {[%clk 0:01:39]}  Bxb5 {[%clk 0:00:16]} 31. Rxf5+ {[%clk 0:01:39]}  Ke7 {[%clk 0:00:16]} 32. axb5 {[%clk 0:01:39]}  hxg4 {[%clk 0:00:14]} 33. Rxd5 {[%clk 0:01:39]}  gxh3 {[%clk 0:00:12]} 34. Rh5 {[%clk 0:01:37]}  Rg4 {[%clk 0:00:12]} 35. d5 {[%clk 0:01:36]}  Ra3+ {[%clk 0:00:12]} 36. Kd4 {[%clk 0:01:36]}  e3+ {[%clk 0:00:12]} 37. Ke5 {[%clk 0:01:37]}  e2 {[%clk 0:00:12]} 38. Rh7+ {[%clk 0:01:36]}  Ke8 {[%clk 0:00:13]} 39. Rh8+ {[%clk 0:01:33]}  Ke7 {[%clk 0:00:13]} 40. d6+ {[%clk 0:01:34]}  Kd7 {[%clk 0:00:13]} 41. Rf7# {[%clk 0:01:34]} 1-0

[Event "January 2 Early 2024"]
[Site "https://www.chess.com"]
[Date "2024.01.02"]
[Round "2"]
[White "Ahmad, Khagan"]
[Black "Boruchovsky, Avital"]
[Result "0-1"]
[Board "72"]
[TimeControl "180+1"]
[WhiteFideId "13431552"]
[BlackFideId "2800055"]
[WhiteElo "2558"]
[BlackElo "2832"]
[WhiteTeam "AZE"]
[BlackTeam "ISR"]
[WhiteClock "0:00:00"]
[BlackClock "0:00:26"]

1. Nf3 {[%clk 0:02:51]}  c5 {[%clk 0:02:58]} 2. c4 {[%clk 0:02:51]}  Nc6 {[%clk 0:02:58]} 3. Nc3 {[%clk 0:02:44]}  g6 {[%clk 0:02:58]} 4. e3 {[%clk 0:02:43]}  Bg7 {[%clk 0:02:54]} 5. d4 {[%clk 0:02:43]}  d6 {[%clk 0:02:55]} 6. Be2 {[%clk 0:02:08]}  Nf6 {[%clk 0:02:53]} 7. O-O {[%clk 0:02:08]}  O-O {[%clk 0:02:53]} 8. h3 {[%clk 0:02:08]}  b6 {[%clk 0:02:41]} 9. b3 {[%clk 0:02:06]}  Bb7 {[%clk 0:02:33]} 10. Bb2 {[%clk 0:02:06]}  cxd4 {[%clk 0:02:33]} 11. Nxd4 {[%clk 0:02:01]}  Nxd4 {[%clk 0:02:33]} 12. Qxd4 {[%clk 0:02:00]}  Ne4 {[%clk 0:02:16]} 13. Qd3 {[%clk 0:01:59]}  Rc8 {[%clk 0:02:08]} 14. Rab1 {[%clk 0:01:25]}  Nxc3 {[%clk 0:01:58]} 15. Bxc3 {[%clk 0:01:24]}  Bxc3 {[%clk 0:01:58]} 16. Qxc3 {[%clk 0:01:25]}  b5 {[%clk 0:01:51]} 17. Qd4 {[%clk 0:01:12]}  bxc4 {[%clk 0:01:51]} 18. bxc4 {[%clk 0:01:05]}  Rc7 {[%clk 0:01:46]} 19. Rfc1 {[%clk 0:00:59]}  Qa8 {[%clk 0:01:45]} 20. Bf1 {[%clk 0:00:53]}  Rfc8 {[%clk 0:01:42]} 21. h4 {[%clk 0:00:47]}  Rc5 {[%clk 0:01:38]} 22. Rb3 {[%clk 0:00:38]}  Ba6 {[%clk 0:01:25]} 23. Qb2 {[%clk 0:00:20]}  Qc6 {[%clk 0:01:21]} 24. Rb8 {[%clk 0:00:17]}  h5 {[%clk 0:01:19]} 25. g3 {[%clk 0:00:15]}  Kh7 {[%clk 0:01:14]} 26. Rxc8 {[%clk 0:00:14]}  Qxc8 {[%clk 0:01:14]} 27. Rb1 {[%clk 0:00:14]}  Bxc4 {[%clk 0:01:11]} 28. Bxc4 {[%clk 0:00:15]}  Rxc4 {[%clk 0:01:11]} 29. Qb7 {[%clk 0:00:15]}  Qc7 {[%clk 0:01:09]} 30. Qf3 {[%clk 0:00:11]}  Rc1+ {[%clk 0:01:06]} 31. Rxc1 {[%clk 0:00:11]}  Qxc1+ {[%clk 0:01:07]} 32. Kh2 {[%clk 0:00:11]}  Qc4 {[%clk 0:01:07]} 33. a4 {[%clk 0:00:08]}  a5 {[%clk 0:00:56]} 34. Qa8 {[%clk 0:00:01]}  Qxa4 {[%clk 0:00:54]} 35. Qb7 {[%clk 0:00:02]}  Qa2 {[%clk 0:00:48]} 36. Qxe7 {[%clk 0:00:02]}  Qxf2+ {[%clk 0:00:48]} 37. Kh3 {[%clk 0:00:02]}  Qf5+ {[%clk 0:00:44]} 38. Kh2 {[%clk 0:00:03]}  d5 {[%clk 0:00:32]} 39. g4 {[%clk 0:00:01]}  hxg4 {[%clk 0:00:30]} 40. e4 {[%clk 0:00:02]}  Qf2+ {[%clk 0:00:25]} 41. Kh1 {[%clk 0:00:00]}  g3 {[%clk 0:00:26]} 0-1

[Event "January 2 Early 2024"]
[Site "https://www.chess.com"]
[Date "2024.01.02"]
[Round "2"]
[White "Ismagilov, Damir"]
[Black "Pakleza, Zbigniew"]
[Result "1/2-1/2"]
[Board "75"]
[TimeControl "180+1"]
[WhiteFideId "34199982"]
[BlackFideId "1119290"]
[WhiteElo "2555"]
[BlackElo "2823"]
[WhiteTeam "RUS"]
[BlackTeam "POL"]
[WhiteClock "0:00:24"]
[BlackClock "0:00:07"]

1. d4 {[%clk 0:03:00]}  d6 {[%clk 0:02:59]} 2. Nc3 {[%clk 0:03:00]}  Nf6 {[%clk 0:02:58]} 3. e4 {[%clk 0:02:59]}  c6 {[%clk 0:02:58]} 4. Nf3 {[%clk 0:02:58]}  Bg4 {[%clk 0:02:58]} 5. h3 {[%clk 0:02:57]}  Bh5 {[%clk 0:02:59]} 6. a4 {[%clk 0:02:53]}  e6 {[%clk 0:02:59]} 7. Be3 {[%clk 0:02:52]}  d5 {[%clk 0:02:59]} 8. e5 {[%clk 0:02:50]}  Nfd7 {[%clk 0:02:59]} 9. Be2 {[%clk 0:02:47]}  Be7 {[%clk 0:02:55]} 10. O-O {[%clk 0:02:47]}  O-O {[%clk 0:02:54]} 11. Qd2 {[%clk 0:02:46]}  c5 {[%clk 0:02:54]} 12. Nb5 {[%clk 0:02:42]}  cxd4 {[%clk 0:02:51]} 13. Nbxd4 {[%clk 0:02:36]}  Nc6 {[%clk 0:02:45]} 14. Nxc6 {[%clk 0:02:27]}  bxc6 {[%clk 0:02:46]} 15. Nd4 {[%clk 0:02:27]}  Bxe2 {[%clk 0:02:23]} 16. Nxc6 {[%clk 0:02:23]}  Qe8 {[%clk 0:01:26]} 17. Qxe2 {[%clk 0:02:22]}  Bc5 {[%clk 0:01:22]} 18. c3 {[%clk 0:02:17]}  a5 {[%clk 0:01:08]} 19. b4 {[%clk 0:02:11]}  Bxe3 {[%clk 0:01:02]} 20. Qxe3 {[%clk 0:02:09]}  Kh8 {[%clk 0:00:46]} 21. b5 {[%clk 0:02:00]}  Qc8 {[%clk 0:00:41]} 22. c4 {[%clk 0:01:56]}  dxc4 {[%clk 0:00:36]} 23. Rac1 {[%clk 0:01:57]}  Qc7 {[%clk 0:00:36]} 24. Rxc4 {[%clk 0:01:56]}  Nb6 {[%clk 0:00:36]} 25. Rh4 {[%clk 0:01:47]}  Nd5 {[%clk 0:00:21]} 26. Qe4 {[%clk 0:01:46]}  h6 {[%clk 0:00:22]} 27. g4 {[%clk 0:01:41]}  f5 {[%clk 0:00:19]} 28. exf6 {[%clk 0:01:35]}  Nxf6 {[%clk 0:00:20]} 29. Qe5 {[%clk 0:01:16]}  Qxe5 {[%clk 0:00:11]} 30. Nxe5 {[%clk 0:01:17]}  Kh7 {[%clk 0:00:11]} 31. g5 {[%clk 0:01:17]}  Nd5 {[%clk 0:00:11]} 32. g6+ {[%clk 0:01:06]}  Kg8 {[%clk 0:00:10]} 33. Rc4 {[%clk 0:01:06]}  Rf5 {[%clk 0:00:09]} 34. Re4 {[%clk 0:01:02]}  Nc3 {[%clk 0:00:08]} 35. Re3 {[%clk 0:00:48]}  Nxa4 {[%clk 0:00:08]} 36. Rb1 {[%clk 0:00:45]}  Nb6 {[%clk 0:00:08]} 37. Nc6 {[%clk 0:00:45]}  Kf8 {[%clk 0:00:06]} 38. Rxe6 {[%clk 0:00:44]}  a4 {[%clk 0:00:05]} 39. Kf1 {[%clk 0:00:42]}  a3 {[%clk 0:00:04]} 40. Nd4 {[%clk 0:00:43]}  a2 {[%clk 0:00:05]} 41. Ra1 {[%clk 0:00:43]}  Rf6 {[%clk 0:00:04]} 42. Rxf6+ {[%clk 0:00:20]}  gxf6 {[%clk 0:00:04]} 43. Nb3 {[%clk 0:00:18]}  Nd5 {[%clk 0:00:04]} 44. Nc1 {[%clk 0:00:19]}  Nc3 {[%clk 0:00:03]} 45. b6 {[%clk 0:00:19]}  Kg7 {[%clk 0:00:02]} 46. b7 {[%clk 0:00:19]}  Rb8 {[%clk 0:00:02]} 47. Nxa2 {[%clk 0:00:20]}  Nxa2 {[%clk 0:00:03]} 48. Rxa2 {[%clk 0:00:21]}  Rxb7 {[%clk 0:00:04]} 49. Kg2 {[%clk 0:00:20]}  Kxg6 {[%clk 0:00:04]} 50. Kg3 {[%clk 0:00:21]}  Rb5 {[%clk 0:00:04]} 51. h4 {[%clk 0:00:21]}  h5 {[%clk 0:00:05]} 52. f3 {[%clk 0:00:21]}  Rb4 {[%clk 0:00:05]} 53. Ra5 {[%clk 0:00:22]}  Rb3 {[%clk 0:00:05]} 54. Rc5 {[%clk 0:00:22]}  Rb1 {[%clk 0:00:05]} 55. Rd5 {[%clk 0:00:22]}  Rg1+ {[%clk 0:00:05]} 56. Kf2 {[%clk 0:00:23]}  Rb1 {[%clk 0:00:06]} 57. Kg3 {[%clk 0:00:23]}  Rg1+ {[%clk 0:00:07]} 58. Kf2 {[%clk 0:00:24]}  Rb1 {[%clk 0:00:07]} 59. Kg3 {[%clk 0:00:24]} 1/2-1/2

[Event "January 2 Early 2024"]
[Site "https://www.chess.com"]
[Date "2024.01.02"]
[Round "2"]
[White "Hernando Rodrigo, Julio Antonio"]
[Black "Bartel, Mateusz"]
[Result "0-1"]
[Board "78"]
[TimeControl "180+1"]
[WhiteFideId "2208350"]
[BlackFideId "1112635"]
[WhiteElo "2551"]
[BlackElo "2809"]
[WhiteTeam "ESP"]
[BlackTeam "POL"]
[WhiteClock "0:00:03"]
[BlackClock "0:01:25"]

1. e4 {[%clk 0:03:00]}  e5 {[%clk 0:02:56]} 2. Nf3 {[%clk 0:03:00]}  d6 {[%clk 0:02:56]} 3. d4 {[%clk 0:02:58]}  exd4 {[%clk 0:02:56]} 4. Nxd4 {[%clk 0:02:56]}  Nf6 {[%clk 0:02:57]} 5. Nc3 {[%clk 0:02:56]}  Be7 {[%clk 0:02:57]} 6. Be2 {[%clk 0:02:49]}  O-O {[%clk 0:02:57]} 7. Be3 {[%clk 0:02:48]}  Nc6 {[%clk 0:02:56]} 8. O-O {[%clk 0:02:48]}  Re8 {[%clk 0:02:56]} 9. f4 {[%clk 0:02:46]}  Bf8 {[%clk 0:02:56]} 10. Bf3 {[%clk 0:02:44]}  Bd7 {[%clk 0:02:55]} 11. Qd2 {[%clk 0:02:38]}  Ng4 {[%clk 0:02:27]} 12. Bxg4 {[%clk 0:02:36]}  Bxg4 {[%clk 0:02:28]} 13. Nxc6 {[%clk 0:02:33]}  bxc6 {[%clk 0:02:28]} 14. h3 {[%clk 0:02:09]}  Be6 {[%clk 0:02:14]} 15. Rad1 {[%clk 0:02:04]}  f5 {[%clk 0:02:05]} 16. exf5 {[%clk 0:01:41]}  Bxf5 {[%clk 0:02:05]} 17. Rfe1 {[%clk 0:01:36]}  Bg6 {[%clk 0:01:51]} 18. Bf2 {[%clk 0:01:31]}  Qf6 {[%clk 0:01:39]} 19. Rxe8 {[%clk 0:01:21]}  Rxe8 {[%clk 0:01:39]} 20. Bxa7 {[%clk 0:00:56]}  c5 {[%clk 0:01:38]} 21. Nd5 {[%clk 0:00:53]}  Qf7 {[%clk 0:01:34]} 22. c4 {[%clk 0:00:29]}  c6 {[%clk 0:01:30]} 23. f5 {[%clk 0:00:12]}  Bxf5 {[%clk 0:01:25]} 24. Rf1 {[%clk 0:00:03]}  cxd5 {[%clk 0:01:25]} 0-1